fUSD/lending_fUSD_20250623
["ID","MTS","AMOUNT","RATE_DAILY","PERIOD"]
[367119635,1750662772483,-785.27,0.0003178,3]
[367119636,1750662772497,-595.61,0.0003178,3]
[367119637,1750662772511,-950.58,0.0003178,3]
[367119638,1750662772525,-1688.41,0.0003178,3]
[367119639,1750662772541,-1953.41,0.0003178,3]
[367119640,1750662772555,-523.44,0.0003178,3]
[367119641,1750662772569,-1726.17,0.0003178,3]
[367119642,1750662772583,-1456.32,0.0003178,3]
[367119643,1750662772596,-1698.32,0.0003178,3]
[367119644,1750662772612,-603.07,0.0003178,3]
[367119645,1750662772626,-490.0,0.0003178,3]
[367119646,1750662772639,-549.86034567,0.0003178,3]
[367119647,1750662772652,-1007.06,0.0003178,3]
[367119648,1750662772666,-1681.01,0.0003178,3]
[367119649,1750662772680,-1708.4,0.0003178,3]
[367119650,1750662772693,-873.29,0.0003178,3]
[367119651,1750662772708,-1098.59,0.0003178,3]
[367119652,1750662772722,-1944.53,0.0003178,3]
[367119653,1750662772737,-490.0,0.0003178,3]
[367119654,1750662772751,-2433.81,0.0003178,3]
[367119655,1750662772764,-501.38,0.0003178,3]
[367119656,1750662772778,-750.42,0.0003178,3]
[367119657,1750662772797,-577.0,0.0003178,3]
[367119658,1750662772811,-662.45,0.0003178,3]
[367119659,1750662772824,-1247.14,0.0003178,3]
[367119660,1750662772838,-1551.77,0.0003178,3]
[367119661,1750662772853,-1650.44,0.0003178,3]
[367119662,1750662772867,-703.59,0.0003178,3]
[367119663,1750662772882,-529.91,0.0003178,3]
[367119664,1750662772895,-490.0,0.0003178,3]
[367119665,1750662772910,-788.62,0.0003178,3]
[367119666,1750662772923,-912.47,0.0003178,3]
[367119667,1750662772937,-1251.29,0.0003178,3]
[367119668,1750662772952,-655.66,0.0003178,3]
[367119669,1750662772966,-675.57,0.0003178,3]
[367119670,1750662772980,-1664.2,0.0003178,3]
[367119671,1750662772994,-1679.9,0.0003178,3]
[367119672,1750662773008,-1433.27,0.0003178,3]
[367119673,1750662773023,-1066.4,0.0003178,3]
[367119674,1750662773400,-490.0,0.0003178,3]
[367119675,1750662773424,-572.95,0.0003178,3]
[367119676,1750662773434,-490.0,0.0003178,3]
[367119677,1750662773444,-1605.51,0.0003178,3]
[367119678,1750662773454,-1690.95,0.0003178,3]
[367119679,1750662773463,-490.0,0.0003178,3]
[367119680,1750662773472,-490.0,0.0003178,3]
[367119681,1750662773482,-1674.28,0.0003178,3]
[367119682,1750662773491,-638.77,0.0003178,3]
[367119683,1750662773500,-1574.11,0.0003178,3]
[367119684,1750662773510,-378.81,0.0003178,3]
[367119685,1750662773519,-684.38,0.0003178,3]
[367119686,1750662773531,-1278.36,0.0003178,3]
[367119687,1750662773543,-905.6,0.0003178,3]
[367119688,1750662773553,-1682.39,0.0003178,3]
[367119689,1750662773562,-1126.22,0.0003178,3]
[367119690,1750662773572,-1410.38,0.0003178,3]
[367119691,1750662773581,-1883.69,0.0003178,3]
[367119692,1750662773591,-7415.21,0.0003178,3]
[367119693,1750662773601,-2332.56,0.0003178,3]
[367119694,1750662773610,-1449.04,0.0003178,3]
[367119695,1750662773619,-849.69,0.0003178,3]
[367119696,1750662773628,-883.32,0.0003178,3]
[367119697,1750662773638,-901.3,0.0003178,3]
[367119698,1750662773647,-1248.93,0.0003178,3]
[367119699,1750662773657,-587.88,0.0003178,3]
[367119700,1750662773667,-1164.04,0.0003178,3]
[367119701,1750662773677,-1753.14,0.0003178,3]
[367119702,1750662773686,-10399.38,0.0003178,3]
[367119703,1750662773696,-4073.96,0.0003178,3]
[367119704,1750662773706,-580.67,0.0003178,3]
[367119705,1750662773715,-836.73,0.0003178,3]
[367119706,1750662773724,-1448.46,0.0003178,3]
[367119707,1750662773734,-918.93,0.0003178,3]
[367119708,1750662773744,-1355.08,0.0003178,3]
[367119709,1750662773754,-526.35,0.0003178,3]
[367119710,1750662773764,-6824.52,0.0003178,3]
[367119711,1750662773774,-1900.51,0.0003178,3]
[367119712,1750662773783,-1016.76,0.0003178,3]
[367119713,1750662773793,-3401.6,0.0003178,3]
[367119714,1750662773802,-3966.47,0.0003178,3]
[367119715,1750662773812,-490.0,0.0003178,3]
[367119716,1750662773822,-490.0,0.0003178,3]
[367119717,1750662773835,-909.73,0.0003178,3]
[367119718,1750662773846,-934.07,0.0003178,3]
[367119719,1750662773857,-4949.36,0.0003178,3]
[367119720,1750662773866,-490.0,0.0003178,3]
[367119721,1750662773876,-2915.88,0.0003178,3]
[367119722,1750662773886,-1741.72,0.0003178,3]
[367119723,1750662773896,-1585.93,0.0003178,3]
[367119724,1750662773906,-490.0,0.0003178,3]
[367119725,1750662773916,-608.52,0.0003178,3]
[367119726,1750662773925,-490.0,0.0003178,3]
[367119727,1750662773936,-18062.45,0.0003178,3]
[367119728,1750662773945,-3468.99,0.0003178,3]
[367119729,1750662773956,-1570.58,0.0003178,3]
[367119730,1750662773966,-1672.97,0.0003178,3]
[367119731,1750662773975,-789.6,0.0003178,3]
[367119732,1750662773985,-798.22,0.0003178,3]
[367119733,1750662773994,-1533.06,0.0003178,3]
[367119734,1750662774004,-1681.4,0.0003178,3]
[367119735,1750662774013,-814.19,0.0003178,3]
[367119736,1750662774023,-528.64,0.0003178,3]
[367119737,1750662774032,-1980.76,0.0003178,3]
[367119738,1750662774041,-1108.02,0.0003178,3]
[367119739,1750662774051,-2594.4,0.0003178,3]
[367119740,1750662774060,-490.0,0.0003178,3]
[367119741,1750662774069,-1623.55,0.0003178,3]
[367119742,1750662774079,-490.0,0.0003178,3]
[367119743,1750662774088,-891.21,0.0003178,3]
[367119744,1750662774099,-1019.18,0.0003178,3]
[367119745,1750662774109,-1174.99,0.0003178,3]
[367119746,1750662774118,-3127.29,0.0003178,3]
[367119747,1750662774127,-1569.21,0.0003178,3]
[367119748,1750662774137,-579.89872842,0.0003178,3]
[367119749,1750662774146,-1940.59,0.0003178,3]
[367119750,1750662774156,-2329.34,0.0003178,3]
[367119751,1750662774167,-664.92,0.0003178,3]
[367119752,1750662774177,-1830.85,0.0003178,3]
[367119753,1750662774186,-1700.21,0.0003178,3]
[367119754,1750662774195,-2769.81,0.0003178,3]
[367119755,1750662774205,-553.74187772,0.0003178,3]
[367119756,1750662774214,-6713.02,0.0003178,3]
[367119757,1750662774224,-777.56,0.0003178,3]
[367119758,1750662774234,-744.42,0.0003178,3]
[367119759,1750662774243,-2394.73,0.0003178,3]
[367119760,1750662774252,-490.0,0.0003178,3]
[367119761,1750662774262,-826.09,0.0003178,3]
[367119762,1750662774272,-1294.78,0.0003178,3]
[367119763,1750662774281,-760.04,0.0003178,3]
[367119764,1750662774291,-1749.09,0.0003178,3]
[367119765,1750662774301,-490.0,0.0003178,3]
[367119766,1750662774311,-555.71,0.0003178,3]
[367119767,1750662774321,-1626.24,0.0003178,3]
[367119768,1750662774331,-4056.64,0.0003178,3]
[367119769,1750662774341,-490.0,0.0003178,3]
[367119770,1750662774351,-1498.64,0.0003178,3]
[367119771,1750662774360,-1457.21,0.0003178,3]
[367119772,1750662774370,-490.0,0.0003178,3]
[367119773,1750662774379,-737.54,0.0003178,3]
[367119774,1750662774389,-1307.83,0.0003178,3]
[367119775,1750662774399,-728.06,0.0003178,3]
[367119776,1750662774411,-1832.35,0.0003178,3]
[367119777,1750662774420,-490.0,0.0003178,3]
[367119778,1750662774429,-1380.67,0.0003178,3]
[367119779,1750662774439,-2228.14,0.0003178,3]
[367119780,1750662774449,-2372.02,0.0003178,3]
[367119781,1750662774459,-3318.96,0.0003178,3]
[367119782,1750662774468,-709.01,0.0003178,3]
[367119783,1750662774478,-862.45,0.0003178,3]
[367119784,1750662774488,-788.8,0.0003178,3]
[367119785,1750662774498,-1200.13,0.0003178,3]
[367119786,1750662774510,-1916.86,0.0003178,3]
[367119787,1750662774520,-678.77,0.0003178,3]
[367119788,1750662774531,-4654.08,0.0003178,3]
[367119789,1750662774542,-1366.52,0.0003178,3]
[367119790,1750662774551,-788.62,0.0003178,3]
[367119791,1750662774561,-515.04,0.0003178,3]
[367119792,1750662774570,-553.78,0.0003178,3]
[367119793,1750662774581,-1578.33,0.0003178,3]
[367119794,1750662774591,-1107.26,0.0003178,3]
[367119795,1750662774600,-498.97,0.0003178,3]
[367119796,1750662774613,-7394.17,0.0003178,3]
[367119797,1750662774623,-1624.99,0.0003178,3]
[367119798,1750662774632,-437.99560774,0.0003178,3]
[367119799,1750662774641,-490.0,0.0003178,3]
[367119800,1750662774650,-2834.49,0.0003178,3]
[367119801,1750662774661,-1036.64,0.0003178,3]
[367119802,1750662774671,-12536.04,0.0003178,3]
[367119803,1750662774680,-3543.99,0.0003178,3]
[367119804,1750662774689,-1768.62,0.0003178,3]
[367119805,1750662774698,-497.45,0.0003178,3]
[367119806,1750662774708,-1619.96,0.0003178,3]
[367119807,1750662774717,-510.41,0.0003178,3]
[367119808,1750662774726,-9852.89,0.0003178,3]
[367119809,1750662774735,-5190.35,0.0003178,3]
[367119810,1750662774745,-490.0,0.0003178,3]
[367119811,1750662774754,-1552.44,0.0003178,3]
[367119812,1750662774764,-814.87,0.0003178,3]
[367119813,1750662774774,-1947.91,0.0003178,3]
[367119814,1750662774784,-2783.14,0.0003178,3]
[367119815,1750662774793,-510.26,0.0003178,3]
[367119816,1750662774802,-1717.08,0.0003178,3]
[367119817,1750662774811,-1630.26,0.0003178,3]
[367119818,1750662774827,-2330.84,0.0003178,3]
[367119819,1750662774839,-752.02,0.0003178,3]
[367119820,1750662774850,-321.28762072,0.0003178,3]
[367119821,1750662774859,-1618.67,0.0003178,3]
[367119822,1750662774869,-490.0,0.0003178,3]
[367119823,1750662774879,-1776.65,0.0003178,3]
[367119824,1750662774888,-915.84,0.0003178,3]
[367119825,1750662774898,-1151.97,0.0003178,3]
[367119826,1750662774908,-670.37,0.0003178,3]
[367119827,1750662774922,-3986.65,0.0003178,3]
[367119828,1750662774931,-1591.01,0.0003178,3]
[367119829,1750662774940,-6065.53,0.0003178,3]
[367119830,1750662774951,-1605.38,0.0003178,3]
[367119831,1750662774961,-1642.63,0.0003178,3]
[367119832,1750662774971,-1960.82,0.0003178,3]
[367119833,1750662774981,-798.12,0.0003178,3]
[367119834,1750662774990,-1292.66,0.0003178,3]
[367119835,1750662775001,-2292.5,0.0003178,3]
[367119836,1750662775011,-2903.63,0.0003178,3]
[367119837,1750662775020,-1562.1,0.0003178,3]
[367119838,1750662775030,-4219.23,0.0003178,3]
[367119839,1750662775040,-765.43,0.0003178,3]
[367119840,1750662775049,-1872.32,0.0003178,3]
[367119841,1750662775059,-3240.53,0.0003178,3]
[367119842,1750662775069,-492.32,0.0003178,3]
[367119843,1750662775079,-1499.13,0.0003178,3]
[367119844,1750662775089,-1684.89,0.0003178,3]
[367119845,1750662775099,-1822.31,0.0003178,3]
[367119846,1750662775108,-2262.37,0.0003178,3]
[367119847,1750662775118,-490.0,0.0003178,3]
[367119848,1750662775128,-745.32,0.0003178,3]
[367119849,1750662775138,-1565.33,0.0003178,3]
[367119850,1750662775148,-1599.78,0.0003178,3]
[367119851,1750662775157,-3248.59,0.0003178,3]
[367119852,1750662775178,-795.18,0.0003178,3]
[367119853,1750662775188,-638.67,0.0003178,3]
[367119854,1750662775198,-8785.1,0.0003178,3]
[367119855,1750662775207,-849.6,0.0003178,3]
[367119856,1750662775217,-1787.94,0.0003178,3]
[367119857,1750662775227,-1444.68,0.0003178,3]
[367119858,1750662775237,-1335.88,0.0003178,3]
[367119859,1750662775246,-948.02,0.0003178,3]
[367119860,1750662775257,-490.0,0.0003178,3]
[367119861,1750662775267,-1583.66,0.0003178,3]
[367119862,1750662775277,-507.9,0.0003178,3]
[367119863,1750662775286,-3963.91,0.0003178,3]
[367119864,1750662775296,-1578.99,0.0003178,3]
[367119865,1750662775307,-1445.82,0.0003178,3]
[367119866,1750662775317,-1285.59,0.0003178,3]
[367119867,1750662775327,-490.0,0.0003178,3]
[367119868,1750662775337,-728.45,0.0003178,3]
[367119869,1750662775347,-806.96,0.0003178,3]
[367119870,1750662775356,-1797.81,0.0003178,3]
[367119871,1750662775365,-1831.64,0.0003178,3]
[367119872,1750662775375,-1432.05,0.0003178,3]
[367119873,1750662775384,-919.07,0.0003178,3]
[367119874,1750662775394,-490.0,0.0003178,3]
[367119875,1750662775404,-14900.62,0.0003178,3]
[367119876,1750662775420,-1833.67,0.0003178,3]
[367119877,1750662775430,-2078.39,0.0003178,3]
[367119878,1750662775440,-510.45,0.0003178,3]
[367119879,1750662775449,-4833.93,0.0003178,3]
[367119880,1750662775459,-1601.31,0.0003178,3]
[367119881,1750662775469,-759.06,0.0003178,3]
[367119882,1750662775478,-873.41,0.0003178,3]
[367119883,1750662775488,-4669.42,0.0003178,3]
[367119884,1750662775498,-1693.53,0.0003178,3]
[367119885,1750662775507,-791.68,0.0003178,3]
[367119886,1750662775516,-990.18,0.0003178,3]
[367119887,1750662775526,-1034.99,0.0003178,3]
[367119888,1750662775539,-1620.6,0.0003178,3]
[367119889,1750662775548,-1653.45,0.0003178,3]
[367119890,1750662775558,-1389.7,0.0003178,3]
[367119891,1750662775568,-3451.15,0.0003178,3]
[367119892,1750662775577,-2416.24,0.0003178,3]
[367119893,1750662775586,-993.54,0.0003178,3]
[367119894,1750662775596,-11090.94,0.0003178,3]
[367119895,1750662775605,-1799.28,0.0003178,3]
[367119896,1750662775615,-1701.67,0.0003178,3]
[367119897,1750662775625,-2070.18,0.0003178,3]
[367119898,1750662775634,-1221.42,0.0003178,3]
[367119899,1750662775643,-1378.47,0.0003178,3]
[367119900,1750662775653,-1736.17,0.0003178,3]
[367119901,1750662775666,-1087.15,0.0003178,3]
[367119902,1750662775676,-1816.97,0.0003178,3]
[367119903,1750662775685,-1834.95,0.0003178,3]
[367119904,1750662775695,-709.09,0.0003178,3]
[367119905,1750662775704,-1672.0,0.0003178,3]
[367119906,1750662775713,-1571.12,0.0003178,3]
[367119907,1750662775723,-1351.61,0.0003178,3]
[367119908,1750662775736,-490.0,0.0003178,3]
[367119909,1750662775746,-4884.01,0.0003178,3]
[367119910,1750662775756,-1729.07,0.0003178,3]
[367119911,1750662775766,-8073.75,0.0003178,3]
[367119912,1750662775777,-1652.26,0.0003178,3]
[367119913,1750662775786,-867.32,0.0003178,3]
[367119914,1750662775796,-1513.2,0.0003178,3]
[367119915,1750662775805,-30050.84,0.0003178,3]
[367119916,1750662775816,-1482.76,0.0003178,3]
[367119917,1750662775826,-1869.9,0.0003178,3]
[367119918,1750662775837,-825.47,0.0003178,3]
[367119919,1750662775849,-1291.21,0.0003178,3]
[367119920,1750662775859,-490.0,0.0003178,3]
[367119921,1750662775869,-718.8,0.0003178,3]
[367119922,1750662775879,-529.57,0.0003178,3]
[367119923,1750662775888,-1000.93,0.0003178,3]
[367119924,1750662775898,-1013.98,0.0003178,2]
[367119925,1750662775908,-749.71,0.0003178,3]
[367119926,1750662775920,-2626.45,0.0003178,3]
[367119927,1750662775929,-1301.95,0.0003178,3]
[367119928,1750662775938,-914.97,0.0003178,3]
[367119929,1750662775948,-5331.91,0.0003178,3]
[367119930,1750662775957,-6188.74,0.0003178,3]
[367119931,1750662775966,-2204.74,0.0003178,3]
[367119932,1750662775976,-733.17,0.0003178,3]
[367119933,1750662775985,-742.07,0.0003178,3]
[367119934,1750662775994,-1553.91,0.0003178,3]
[367119935,1750662776004,-1201.89,0.0003178,3]
[367119936,1750662776013,-866.05,0.0003178,3]
[367119937,1750662776023,-716.87,0.0003178,3]
[367119938,1750662776032,-490.0,0.0003178,3]
[367119939,1750662776042,-5637.09,0.0003178,3]
[367119940,1750662776052,-2465.19,0.0003178,3]
[367119941,1750662776062,-1651.87,0.0003178,3]
[367119942,1750662776072,-1607.85,0.0003178,3]
[367119943,1750662776082,-572.05,0.0003178,3]
[367119944,1750662776092,-1906.99,0.0003178,3]
[367119945,1750662776101,-1536.26,0.0003178,3]
[367119946,1750662776112,-1920.56,0.0003178,3]
[367119947,1750662776122,-2965.58,0.0003178,3]
[367119948,1750662776132,-764.72,0.0003178,3]
[367119949,1750662776141,-1131.73,0.0003178,3]
[367119950,1750662776152,-594.04,0.0003178,3]
[367119951,1750662776165,-181.08010149,0.00031826,2]
[367119952,1750662776175,-801.85129955,0.00031826,2]
[367119953,1750662776185,-248.71531821,0.00031826,2]
[367119954,1750662776195,-1196.7224541,0.00031845,2]
[367119955,1750662776204,-1224.0,0.00031887,2]
[367119956,1750662776215,-52652.94,0.000319,7]
[367119957,1750662776225,-9152.84069802,0.000319,2]
[367119958,1750662776235,-1333.0,0.00031945,120]
[367119959,1750662776244,-201.0,0.0003199,14]
[367119960,1750662776254,-4000.0,0.00032,4]
[367119961,1750662776263,-1540.69357484,0.00032,2]
[367119962,1750662776273,-35000.0,0.00032,2]
[367119963,1750662776282,-2637.22,0.00032,32]
[367119964,1750662776293,-191.0,0.00032,30]
[367119965,1750662776303,-1258.03765544,0.00032038,26]
[367119966,1750662776312,-5455.753665,0.00032054,3]
[367119967,1750662776321,-906.91,0.00032054,3]
[367119968,1750662776331,-358.26253288,0.00032054,3]
[367119969,1750662776340,-490.0,0.00032054,3]
[367119970,1750662776350,-765.27,0.00032054,3]
[367119971,1750662776360,-490.0,0.00032054,3]
[367119972,1750662776370,-490.0,0.00032054,3]
[367119973,1750662776379,-252.921479,0.00032054,3]
[367119974,1750662776389,-958.78,0.00032054,3]
[367119975,1750662776399,-972.11,0.00032054,3]
[367119976,1750662776409,-548.42,0.00032054,3]
[367119977,1750662776422,-2591.829598,0.00032054,3]
[367119978,1750662776432,-615.11,0.00032054,3]
[367119979,1750662776442,-804.23,0.00032054,3]
[367119980,1750662776451,-1075.31,0.00032054,3]
[367119981,1750662776461,-692.3,0.00032054,3]
[367119982,1750662776470,-811.41,0.00032054,3]
[367119983,1750662776480,-490.0,0.00032054,3]
[367119984,1750662776489,-695.49,0.00032054,3]
[367119985,1750662776499,-490.0,0.00032054,3]
[367119986,1750662776508,-977.66,0.00032054,3]
[367119987,1750662776518,-833.21,0.00032054,3]
[367119988,1750662776527,-591.25,0.00032054,3]
[367119989,1750662776539,-690.16,0.00032054,3]
[367119990,1750662776549,-1109.36,0.00032054,3]
[367119991,1750662776558,-490.0,0.00032054,3]
[367119992,1750662776567,-526.92,0.00032054,3]
[367119993,1750662776578,-519.11,0.00032054,3]
[367119994,1750662776587,-490.0,0.00032054,3]
[367119995,1750662776596,-970.12,0.00032054,3]
[367119996,1750662776605,-1478.36,0.00032054,3]
[367119997,1750662776617,-1376.6,0.00032054,3]
[367119998,1750662776854,-889.62,0.00032054,3]
[367119999,1750662776865,-468.68329171,0.00032054,3]
[367120000,1750662776875,-1155.19,0.00032054,3]
[367120001,1750662776884,-490.0,0.00032054,3]
[367120002,1750662776894,-495.01,0.00032054,3]
[367120003,1750662776903,-668.52,0.00032054,3]
[367120004,1750662776912,-611.64,0.00032054,3]
[367120005,1750662776925,-698.01,0.00032054,3]
[367120006,1750662776934,-644.39,0.00032054,3]
[367120007,1750662776943,-617.7,0.00032054,3]
[367120008,1750662776952,-826.8,0.00032054,3]
[367120009,1750662776962,-490.0,0.00032054,3]
[367120010,1750662776971,-490.0,0.00032054,3]
[367120011,1750662776981,-626.46,0.00032054,3]
[367120012,1750662776990,-841.55,0.00032054,3]
[367120013,1750662777000,-625.27,0.00032054,3]
[367120014,1750662777010,-1584.78,0.00032054,3]
[367120015,1750662777019,-490.0,0.00032054,3]
[367120016,1750662777028,-490.0,0.00032054,3]
[367120017,1750662777038,-1089.25,0.00032054,3]
[367120018,1750662777047,-914.26,0.00032054,3]
[367120019,1750662777057,-777.39,0.00032054,3]
[367120020,1750662777066,-667.3,0.00032054,3]
[367120021,1750662777076,-1172.55,0.00032054,3]
[367120022,1750662777085,-857.69,0.00032054,3]
[367120023,1750662777095,-601.26,0.00032054,3]
[367120024,1750662777104,-654.18,0.00032054,3]
[367120025,1750662777114,-1486.14,0.00032054,3]
[367120026,1750662777124,-563.6,0.00032054,3]
[367120027,1750662777133,-641.56,0.00032054,3]
[367120028,1750662777143,-2328.1,0.00032054,3]
[367120029,1750662777152,-490.0,0.00032054,3]
[367120030,1750662777165,-2984.61,0.00032054,3]
[367120031,1750662777175,-834.55,0.00032054,3]
[367120032,1750662777185,-1714.75,0.00032054,3]
[367120033,1750662777194,-1666.5,0.00032054,3]
[367120034,1750662777204,-579.07,0.00032054,3]
[367120035,1750662777214,-774.87,0.00032054,3]
[367120036,1750662777224,-523.64,0.00032054,3]
[367120037,1750662777234,-1685.1,0.00032054,3]
[367120038,1750662777244,-198.016965,0.00032054,3]
[367120039,1750662777253,-685.83,0.00032054,3]
[367120040,1750662777263,-845.32,0.00032054,3]
[367120041,1750662777272,-1003.013708,0.00032054,3]
[367120042,1750662777282,-407.03,0.00032054,3]
[367120043,1750662777291,-490.0,0.00032054,3]
[367120044,1750662777301,-490.0,0.00032054,3]
[367120045,1750662777310,-620.28,0.00032054,3]
[367120046,1750662777320,-692.18,0.00032054,3]
[367120047,1750662777329,-583.42,0.00032054,3]
[367120048,1750662777339,-490.0,0.00032054,3]
[367120049,1750662777348,-1382.11,0.00032054,3]
[367120050,1750662777358,-957.53,0.00032054,3]
[367120051,1750662777369,-1520.85,0.00032054,3]
[367120052,1750662777380,-852.4,0.00032054,3]
[367120053,1750662777389,-1514.64,0.00032054,3]
[367120054,1750662777399,-564.98,0.00032054,3]
[367120055,1750662777409,-1413.76,0.00032054,3]
[367120056,1750662777420,-621.88,0.00032054,3]
[367120057,1750662777430,-1486.85,0.00032054,3]
[367120058,1750662777440,-643.76,0.00032054,3]
[367120059,1750662777450,-605.57,0.00032054,3]
[367120060,1750662777459,-765.6,0.00032054,3]
[367120061,1750662777469,-635.87,0.00032054,3]
[367120062,1750662777479,-748.29,0.00032054,3]
[367120063,1750662777489,-490.0,0.00032054,3]
[367120064,1750662777499,-559.87,0.00032054,3]
[367120065,1750662777509,-521.1,0.00032054,3]
[367120066,1750662777518,-702.32,0.00032054,3]
[367120067,1750662777528,-1437.96,0.00032054,3]
[367120068,1750662777540,-933.29,0.00032054,3]
[367120069,1750662777549,-623.74,0.00032054,3]
[367120070,1750662777559,-1229.23,0.00032054,3]
[367120071,1750662777569,-1240.62,0.00032054,3]
[367120072,1750662777579,-490.0,0.00032054,3]
[367120073,1750662777589,-1044.91,0.00032054,3]
[367120074,1750662777598,-636.16,0.00032054,3]
[367120075,1750662777608,-490.92,0.00032054,3]
[367120076,1750662777618,-583.46,0.00032054,3]
[367120077,1750662777628,-1648.05,0.00032054,3]
[367120078,1750662777637,-745.48,0.00032054,3]
[367120079,1750662777647,-1819.02,0.00032054,3]
[367120080,1750662777658,-1025.74,0.00032054,3]
[367120081,1750662777669,-507.64,0.00032054,3]
[367120082,1750662777680,-1776.13,0.00032054,3]
[367120083,1750662777690,-803.35,0.00032054,3]
[367120084,1750662777700,-1305.95,0.00032054,3]
[367120085,1750662777710,-1801.52,0.00032054,3]
[367120086,1750662777719,-825.12,0.00032054,3]
[367120087,1750662777729,-553.17,0.00032054,3]
[367120088,1750662777739,-1449.74,0.00032054,3]
[367120089,1750662777749,-1184.6,0.00032054,3]
[367120090,1750662777759,-2077.31,0.00032054,3]
[367120091,1750662777769,-903.1,0.00032054,3]
[367120092,1750662777779,-1228.76,0.00032054,3]
[367120093,1750662777789,-840.82,0.00032054,3]
[367120094,1750662777798,-972.48,0.00032054,3]
[367120095,1750662777809,-490.0,0.00032054,3]
[367120096,1750662777818,-698.82,0.00032054,3]
[367120097,1750662777827,-1683.09,0.00032054,3]
[367120098,1750662777837,-614.18,0.00032054,3]
[367120099,1750662777846,-1017.63,0.00032054,3]
[367120100,1750662777856,-1068.5,0.00032054,3]
[367120101,1750662777865,-492.43,0.00032054,3]
[367120102,1750662777875,-899.45,0.00032054,3]
[367120103,1750662777885,-1018.31,0.00032054,3]
[367120104,1750662777894,-1034.85,0.00032054,3]
[367120105,1750662777904,-1636.32,0.00032054,3]
[367120106,1750662777914,-636.43,0.00032054,3]
[367120107,1750662777924,-514.73,0.00032054,3]
[367120108,1750662777934,-1597.54,0.00032054,3]
[367120109,1750662777943,-878.08,0.00032054,3]
[367120110,1750662777954,-933.44,0.00032054,3]
[367120111,1750662777963,-507.27371089,0.00032054,3]
[367120112,1750662777974,-980.14,0.00032054,3]
[367120113,1750662777985,-1351.29,0.00032054,3]
[367120114,1750662777996,-490.0,0.00032054,3]
[367120115,1750662778006,-357.84,0.00032054,3]
[367120116,1750662778016,-1021.72,0.00032054,3]
[367120117,1750662778026,-490.0,0.00032054,3]
[367120118,1750662778039,-2515.92,0.00032054,3]
[367120119,1750662778051,-563.49,0.00032054,3]
[367120120,1750662778062,-973.74,0.00032054,3]
[367120121,1750662778071,-718.42,0.00032054,3]
[367120122,1750662778081,-490.0,0.00032054,3]
[367120123,1750662778091,-490.0,0.00032054,3]
[367120124,1750662778101,-763.59,0.00032054,3]
[367120125,1750662778111,-1171.08,0.00032054,3]
[367120126,1750662778121,-806.32,0.00032054,3]
[367120127,1750662778133,-1313.3,0.00032054,3]
[367120128,1750662778143,-1866.63,0.00032054,3]
[367120129,1750662778153,-783.39,0.00032054,3]
[367120130,1750662778163,-1408.5,0.00032054,3]
[367120131,1750662778174,-760.51,0.00032054,3]
[367120132,1750662778184,-640.07,0.00032054,3]
[367120133,1750662778194,-1113.91,0.00032054,3]
[367120134,1750662778204,-1204.57,0.00032054,3]